Workbook

Sheet Instructions
B2: Instructions for Spartan Emergency Animal Tissue Composting (ATC) Planner
B3: v1.03
B5: 1. Overview
B6: Spartan Emergency Animal Tissue Compost (ATC) Planner is an Excel application that assists in designing a composting system using static piling approaches, including facility type, facility size and material projections. The spreadsheet has been designed for composting animal tissue as whole carcasses.
B7: There are two general composting systems or methods which might be used for large single event composting of animal tissue in static piles: piled in bins (i.e. bunker silos or other configurations using walls to support and contain the composting materials) and windrows. Static means that animal tissue and compost materials are mixed and left to stand motionless or idle for a planned period of time.
B8: Spartan Emergency ATC Planner was developed by Dr. Dale Rozeboom (Department of Animal Science, Michigan State University), Dr. Howard Person (formerly Department of Agricultural Engineering Michigan State University and currently Manure and Organic Residual Management Consultant, Agri-Business Consultants, Dimondale, Michigan), Suzanne Reamer (Michigan Natural Resource Conservation Service), Dean Ross (Agrosecurity Consulting, Bath, Michigan) and Robert Kriegel (ANR Technology Services, Michigan State University).
B9: For inquiries about this application contact rozeboom@msu.edu.
B11: 2. System Requirements
B12: Excel 2003. Due to changes in how Excel handles macros, there are separate versions of this application for Excel 2003 and for Excel 2007-2010. You must have Microsoft Excel 2003 or later to run Spartan ATC Emergency Planner. The spreadsheet contains macros, so MS Excel's security must be set to moderate or low to allow the macros to function. To change the security setting select Tools > Macro > Security from Excel's main menu and set security to moderate or low. Since macros are only loaded when a file is first opened, you need to close and reopen a file after changing Excel's macro security settings. Depending on your security setting, Excel may ask you whether to enable or disable macros when you open the file. Macros must be enabled for the application to work correctly.
B13: Excel 2007 and later. Due to changes in how Excel handles macros, there are separate versions of this application for Excel 2003 and for Excel 2007-2010. You must have Microsoft Excel 2007 or later to run this version of Spartan ATC Emergency Planner. The spreadsheet contains macros, so MS Excel's security must be set to moderate or low to allow the macros to function. To change the security setting select the Developer tab on Excel's main menu, then select 'Macro Security' from the toolbar and Tools > Macro > Security from Excel's main menu and set security to enable macros. Depending on your security setting, Excel may ask you whether to enable or disable macros when you open the file. Macros must be enabled for the application to work operate correctly.
B15: 3. Planning a Compost System
B16: Spartan ATC Emergency Planner assists with planning and sizing of a single event composting system. First, the program provides an estimate of amount of the expected amount of animal tissue using enterprise size, mortality rates specific to phases of animal production, and average carcass weights. More than one type of animal production enterprise can be entered into the planner. Second, Spartan ATC Emergency Planner assists with the sizing of a composting system to accommodate the estimated volume or pounds of mortality. System foot print dimensions can be entered using the available space. Up to four (4) different potential windrow sites can be entered and compared relative to is ability to contain a windrow composting system intended to redue a fixed volume or weight of animal carcasses.
B17: The Spartan ATC Emergency Planner delivers answers to several general questions, including:
B18: • Estimation of area required to compost a specific weight or number of mortalities (based on species and weights of animals, width and height of windrows or bin foot print, animal tissue density in the pile and equipment working space).
B19: • Determine the percentage of a defined space which will be required to compost a specific weight or number of mortalities (based on species and weights of animals, width and height of windrows or bin foot print, animal tissue density in the pile and equipment working space).
B20: • Determine the number and length of windrows required to compost a specific weight or number of mortalities (based on species and weights of animals, width and height of windrows or bin foot print, animal tissue density in the pile and equipment working space).
B21: • Determine the amount of bulking agent mixture needed to compost the specific weight or number of mortalities.
B22: Input variables.
B23: • Throughout the spreadsheet the green shaded cells signal locations for entering data into the spreadsheet (though in many cases default information representing best management practices is provided).
B24: • Information concering: species, production phase/age group, and average weight within production phase/age group.
B25: • Data that can be entered when using bins: bin length, bin width, height of compost pile in the bin.
B26: • Data can be entered when using windrows inlcudes: animal tissue density in the pile, height of the pile/windrow, width of windrow, length and width of up to four (4) potential composting sites, and desired equipment working space width.
B28: Output.
B29: • Number of carcasses & calculated pounds (lbs) of mortality by production phase/age group.
B30: • Total calculated pounds (lbs) of mortality by species.
B31: • For the bin composting system:
B32: ◦ Total weight of mortalities (across species on the farm)
B33: ◦ Total volume needed for composting
B34: ◦ Total construction volume of the bin
B35: ◦ Total floor area of the bin
B36: ◦ Effective volume of the bin (three sided bin)
B37: ◦ Bin capacity used, amount of amendment required.
B38: • For the window composting system:
B39: ◦ Total weight of mortalities (across the farm)
B40: ◦ Windrow volume needed for current mortalities
B41: ◦ Amount of amendment needed for current mortalities
B42: • For the window composting system the following is reported for each of up to four (4) possible composting sites:
B43: ◦ Number of complete windrows available on the pad
B44: ◦ Exact number of windrows needed
B45: ◦ Total effective volume of all complete windrows
B46: ◦ Amount of amendment needed for current mortalities
B47: ◦ Apron area needed to form and turn windrows
B48: ◦ Area of pad including working space
B49: ◦ Maximum windrow length
B50: ◦ Available area including apron
B51: ◦ Percent of needed capacity
B52: ◦ Number of windrows available on the composting site
B53: ◦ Number of windrows short
B55: The Excel workbook contains the following two worksheets:
B56: Instructions. This sheet contains instructions for using the System Planner worksheet.
B57: Emergency Planner. Use this sheet to determine the material flow and size of a static piling compost system or operation. You will determine animal tissue accumulation rate (amount per time) and then plan how to accomplish the composting of that amount of tissue (flow as batches) through a compost system of a size which you select for your situation.
B59: a. Introductory Steps
B60: In the first 12 rows of the Emergency Planner worksheet enter the following general information about the farm or event:
B61: Name and address: Enter the enterprise name and address information for this plan.
B62: Select producer type: Using the checkboxes select one or more different animal production enterprises. A table for that specie will appear below to be used to estimate the amount of animal tissue. If more than one animal production enterprise is selected, the amount of animal tissue will be a sum of all enterprises.
B63: Select type of composting system: Using the drop-down list, select either the bin or windrow system type that will be used; or select both types for comparison. The worksheet may be switched from one system to another at any time. Alternatively, all systems may be evaluated at one time. The advantages and disadvantages of each system are described in the Michigan Animal Tissue Compost Operational Standard available at the following URL:
B64: https://www.msu.edu/~rozeboom/
B65: Target animal tissue density: Also known as "volume factor" or "volume coefficient" or the "bulking agent to mortality ratio". This is the most important factor in determining composting volume. This density has been determined through experimentation. Animal tissue composting has been successfully accomplished using densities varying from 0.05 to 15 lb/ft3. However, when animal tissue density is greater than 10 lb/ft3, intensive management of aeration and moisture is necessary. The Spartan Compost Emergency Planner default is 5 lb/ft3 in order to maximize composting system operations in all conditions. The impact resulting from the input of other animal tissue density values should be carefully considered before committing to such a change.
B67: b. Animal Production Information
B68: In the next portion of the Emergency Planner worksheet green shaded cells are provided for you enter production information for estimating animal tissue accumulation. More than one animal species can be included in the tissue accumulation calculations of a single worksheet. For specific help with understanding what information is being requested, a comment will appear when the cursor hovers over the name of the item for which a number is being requested.
B70: c. Composting Systems Plan (Bin or Windrows)
B71: The next portion of the Emergency Planner provides green shaded cells for entering:
B72: 1. The types of composting system to be used (bin or windrows or both).
B73: 2. The dimensions of the composting structure.
B74: a. Bin: Length, width, and height: Each dimension is described in a comment that will appear when the cursor is placed over the name of the measure, or the windrow and working space dimensions.
B75: b. Windrow: Windrow width, windrow height or equipment working space (apron width). Each dimension is described in a comment that will appear when the cursor is placed over the name of the measure or the windrow and working space conditions.
B76: c. Windrow Composting Sites: When evaluating or using windrow composting, the worksheet will require the input of the overall dimensions of at least one (1) and up to a total of four (4) potential composting sites when comparing sites. The dimensions are listed as Length and Width. Where one dimension is greater than the other, the longer dimension should be entered in to Length input cell for that site.
B78: d. Composting Systems Results Reporting
B79: 1. Mortality to Amendment Relationships: The Spartan ATC Emergency Planner worksheet will provide calculated information for: Total weight of animal mortality, compost volume needed for total mortality, and amount of compost amendments needed. This information is provided regardless of composting system(s) selected.
B80: 2. Bin System: The Spartan ATC Emergency Planner worksheet will provide calculated information for: Total volume of bin system, Total area of floor, Effective volume of bin, and Bin capacity used. If Bin capacity exceeds 100%, the bin is insufficient in size to contain the entire mortality available. Other mortality disposal methods will be required for any excess.
B81: 3. Windrow System: The Spartan ATC Emergency Planner worksheet will provide calculated information for each site that has information entered into it: Available area, windrow length, Exact number of windrows needed, Number of windrows rounded up, Number of windrows available at site, Number of windrows short, Working space needed to manage windrows, Total area of pad needed, Projected width of site given available length, and Percent of mortality that could be composted at site.
B83: Printing: Spartan ATC Emergency Planner prints out plans as one page in portrait orientation.
B85: Notes and definitions:
B87: Duration of active composting in bin: In well-managed active composting, the decomposition of all soft tissues should take 1 to 2 months. Bones will not decompose in this time. Time required to decompoase tissues is dependent on the maturity of the animals. Mature swine hides will persist 1 to 2 months longer than this; longer than those of mature bovine or equine, and all other soft tissues.
B89: Equipment working space or apron width: This is the area around batches needed for formation and mixing using a bucket loader. It is sometimes called an apron. Enter the linear distance from the edge of the compost material (where is meets the inside border of the apron) to outside border of apron. This space depends on size of tractor and loader.

Sheet Emergency Planner
G1: Spartan Emergency ATC Planner Worksheet | N1: ------> THESE COLUMNS WILL BE HIDDEN IN FINAL VERSIONS -------------------------------->
C3: Date: | G3: Address: | P3: farm mortality | R3: carcass volume
C4: Name: | O4: Swine produccer: | P4: =IF(UseSwineMortality,swineMortality,0) -> 0 | R4: =IF(UseSwineMortality,swineVolume,0) -> 0
C5: Phone: | O5: Bovine producer: | P5: =IF(useBovineMortality,bovineMortality,0) -> 0 | R5: =IF(useBovineMortality,bovineVolume,0) -> 0
C6: Fax: | O6: Poultry producer: | P6: =IF(usePoultryMortality,poultryMortality,0) -> 0 | R6: =IF(usePoultryMortality,poultryVolume,0) -> 0
O7: Equine producer; | P7: =IF(useEquineMortality,equineMortality,0) -> 0 | R7: =IF(useEquineMortality,equineVolume,0) -> 0
B8: Select specie(s) of mortality: | G8: Select type of composting system: | O8: Small ruminant producer: | P8: =IF(useSmallRuminantMortality,ruminantMortality,0) -> 0 | R8: =IF(useSmallRuminantMortality,ruminantVolume,0) -> 0
O10: Total farm mortality: | P10: =SUM(P4:P8) -> 0 | Q10: lb
O11: Total compost volume: | P11: =EmergencyFarmMortality/TargetTissueDensity -> 0 | Q11: ft3
O12: Total carcass volume: | P12: =SUM(R4:R8) -> 0 | Q12: ft3 | R12: ft3 / yard:
O13: Total amendment volume: | P13: =EmergencyTissueVolume-emergencyCarcassVolume -> 0 | Q13: ft3 | S13: 27
O14: Total amendment volume: | P14: =P13/cubicFtPerYard -> 0 | Q14: yd3
D15: Target animal tissue density: | E15: 5 | F15: lb/ft3 | G15: =IF(E15>15,"Michigan regulations require animal tissue density <= 15 lb per cubic ft","") ->  | O15: <= input a density > 15 and see what happens
B17: Swine Mortality Information
D19: Item | F19: Sows & Litters | G19: Breeding Herd | H19: Nursery | I19: Wean-Finish | J19: Grow-Finish | O19: Swine carcass weight = | P19: 1694 | Q19: lb/yard
E20: Number of carcasses: | F20: 0 | G20: 0 | H20: 0 | I20: 0 | J20: 0 | O20: Animal density = | P20: =SwineCarcassWt/cubicFtPerYard -> 62.74074074 | Q20: lb/ft3
E21: Average weight of animals (lb): | F21: 500 | G21: 450 | H21: 40 | I21: 125 | J21: 150 | O21: Animal volume = | P21: =swineMortality/swineDensity -> 0 | Q21: ft3
E22: Calculated mortality (lb): | F22: =F20*F21 -> 0 | G22: =G20*G21 -> 0 | H22: =H20*H21 -> 0 | I22: =I20*I21 -> 0 | J22: =J20*J21 -> 0
E23: Total swine mortality: | F23: =SUM(F22:J22) -> 0 | G23: lb
B26: Bovine Mortality Information
C28: Item | F28: Cows | G28: Calves | H28: Heifers | I28: Feeder Cattle | O28: bovine carcass weight = | P28: 1761 | Q28: lb/yard
E29: Number of carcasses: | F29: 0 | G29: 0 | H29: 0 | I29: 0 | O29: Animal density = | P29: =BovineCarcassWt/cubicFtPerYard -> 65.22222222 | Q29: lb/ft3
E30: Average weight of animals (lb): | F30: 1200 | G30: 110 | H30: 600 | I30: 850 | O30: Animal volume = | P30: =bovineMortality/bovineDensity -> 0 | Q30: ft3
E31: Calculated mortality (lb): | F31: =F29*F30 -> 0 | G31: =G29*G30 -> 0 | H31: =H29*H30 -> 0 | I31: =I29*I30 -> 0
E32: Total farm mortality: | F32: =SUM(F31:I31) -> 0 | G32: lbs
B35: Poultry Mortality Information
C37: Item | F37: Layers | G37: Turkeys | H37: Others
E38: Number of carcasses: | F38: 0 | G38: 0 | H38: 0 | O38: Poultry carcass weight = | P38: =5714/7.14 -> 800.280112 | Q38: lb/yard
E39: Average weight of animals during phase (lb): | F39: 6 | G39: 15 | H39: 6 | O39: Animal density = | P39: =PoultryCarcassWt/cubicFtPerYard -> 29.64000415 | Q39: lb/ft3
E40: Calculated mortality (lb): | F40: =F38*F39 -> 0 | G40: =G38*G39 -> 0 | H40: =H38*H39 -> 0 | O40: Animal volume = | P40: =poultryMortality/poultryDensity -> 0 | Q40: ft3
E41: Total farm mortality: | F41: =SUM(F40:H40) -> 0 | G41: lbs
B44: Equine Mortality Information
C46: Item | F46: Adults | G46: Foals | O46: Equine carcass weight = | P46: 1700 | Q46: lb/yard
E47: Number of carcasses: | F47: 0 | G47: 0 | O47: Animal density = | P47: =EquineCarcassWt/cubicFtPerYard -> 62.96296296 | Q47: lb/ft3
E48: Average weight of animals (lb): | F48: 1500 | G48: 200 | O48: Animal volume = | P48: =equineMortality/equineDensity -> 0 | Q48: ft3
E49: Calculated mortality (lb): | F49: =F47*F48 -> 0 | G49: =G47*G48 -> 0
E50: Total farm mortality: | F50: =SUM(F49:G49) -> 0 | G50: lb
B53: Small Ruminant Mortality Information
C55: Item | F55: Adults | G55: Juveniles | O55: Small ruminant carcass weight = | P55: 1400 | Q55: lb/yard
E56: Number of carcasses: | F56: 0 | G56: 0 | O56: Animal density = | P56: =RuminantCarcassWt/cubicFtPerYard -> 51.85185185 | Q56: lb/ft3
E57: Average weight of animals (lb): | F57: 120 | G57: 40 | O57: Animal volume = | P57: =ruminantMortality/ruminantDensity -> 0 | Q57: ft3
E58: Calculated mortality (lb): | F58: =F56*F57 -> 0 | G58: =G56*G57 -> 0
E59: Total farm mortality: | F59: =SUM(F58:I58) -> 0 | G59: lbs
B62: Mortality to Amendment Relationships
E64: Total weight of mortality: | F64: =EmergencyFarmMortality -> 0 | G64: lb
E65: Compost volume needed for total mortality: | F65: =EmergencyTissueVolume -> 0 | G65: ft3
E66: Amount of compost amendment(s) needed: | F66: =AmendmentVolume -> 0 | G66: yd3
B69: Composting System Plan Using a Bin
C70: Design Parameters | O70: Hidden bin calculations
E71: Bin length: | F71: 200 | G71: ft | P71: Effective volume of bin = | Q71: =(eBinWidth*eDepth*eBinLength) - (eBinWidth*TAN(RADIANS(30))*(eDepth^2)/2) -> 79076.23957 | R71: ft3
E72: Bin width: | F72: 50 | G72: ft | P72: Total volume = | Q72: =eBinLength*eBinWidth*eDepth -> 80000 | R72: ft3
E73: Material depth: | F73: 8 | G73: ft | P73: bin capacity used = | Q73: =EmergencyTissueVolume*100/eBinEffVolume -> 0 | R73: %
C75: Compost Facility Summary
E76: Total volume of bin system: | F76: =eBinConstructionVolume -> 80000 | G76: ft3
E77: Total area of floor: | F77: =eBinConstructionVolume/eDepth -> 10000 | G77: ft2
E78: Effective volume of bin: | F78: =eBinEffVolume -> 79076.23957 | G78: ft3
E79: Bin capacity used: | F79: =eBineCapacityUsed -> 0 | G79: %
B81: Composting System Plan Using Windrows | O81: Hidden windrow calculations
C82: Design Parameters
E83: Windrow width: | F83: 20 | G83: ft | P83: length of 1 windrow = | Q83: =ROUNDUP(EmergencyTissueVolume/(0.67*widthWindrow*heightMaterial),0) -> 0 | R83: ft
E84: Height of compost material: | F84: 8 | G84: ft | S84: length = | T84: =Q83+2*workingSpaceWidth -> 40 | V84: width = | W84: =ROUNDUP(widthWindrow+2*workingSpaceWidth,0) -> 60 | Y84: area = | Z84: =T84*W84 -> 2400
E85: Equipment working space (width): | F85: 20 | G85: ft | Y85: acres = | Z85: =ROUNDUP(Z84 / 43560,1) -> 0.1
C87: ="All mortality could be composted using one windrow on a pad "&T84&" ft long X "&W84&" ft wide, i.e. "&Z85&" acres." -> All mortality could be composted using one windrow on a pad 40 ft long X 60 ft wide, i.e. 0.1 acres. | Q87: Site 1 | S87: Site 2 | U87: Site 3 | W87: Site 4
P88: Effective volume of 1 windrow = | Q88: =0.67*windrow1Length*widthWindrow*heightMaterial -> 27872 | R88: ft3 | S88: =0.67*windrow2Length*widthWindrow*heightMaterial -> 38592 | T88: ft3 | U88: =0.67*windrow3Length*widthWindrow*heightMaterial -> 0 | V88: ft3 | W88: =0.67*windrow4Length*widthWindrow*heightMaterial -> 0 | X88: ft3
C89: Evaluating Potential Sites for Windrows | F89: site 1 | H89: site 2 | J89: site 3 | L89: site 4
E90: available length: | F90: 300 | G90: ft | H90: 400 | I90: ft | J90: 0 | K90: ft | L90: 0 | M90: ft
E91: available width: | F91: 0 | G91: ft | H91: 0 | I91: ft | J91: 0 | K91: ft | L91: 0 | M91: ft | P91: Effective volume, all complete windrows = | Q91: =effVolume1Windrow*numWindrowsRounded -> 0 | R91: ft3 | S91: =effVolume2Windrow*NumWindrows2Rounded -> 0 | T91: ft3 | U91: =effVolume3Windrow*NumWindrows3Rounded -> 0 | V91: ft3 | W91: =effVolume4Windrow*NumWindrows4Rounded -> 0 | X91: ft3
E93: Available area: | F93: =AvailLength*AvailWidth -> 0 | G93: ft2 | H93: =AvailLength2*AvailWidth2 -> 0 | I93: ft2 | J93: =AvailLength3*AvailWidth3 -> 0 | K93: ft2 | L93: =AvailLength4*AvailWidth4 -> 0 | M93: ft2 | O93: All caution output if windrow width*0.67 < windrow height
E94: Windrow length: | F94: =IF(AvailLength>0,AvailLength-2*workingSpaceWidth,0) -> 260 | G94: ft | H94: =IF(AvailLength2>0,AvailLength2-2*workingSpaceWidth,0) -> 360 | I94: ft | J94: =IF(AvailLength3>0,AvailLength3-2*workingSpaceWidth,0) -> 0 | K94: ft | L94: =IF(AvailLength4>0,AvailLength4-2*workingSpaceWidth,0) -> 0 | M94: ft
E95: Exact number of windrows needed: | F95: =IF(effVolume1Windrow>0,EmergencyTissueVolume/effVolume1Windrow,0) -> 0 | H95: =IF(effVolume2Windrow>0,EmergencyTissueVolume/effVolume2Windrow,0) -> 0 | J95: =IF(effVolume3Windrow>0,EmergencyTissueVolume/effVolume3Windrow,0) -> 0 | L95: =IF(effVolume4Windrow>0,EmergencyTissueVolume/effVolume4Windrow,0) -> 0
E96: Number of windrows, rounded up: | F96: =ROUNDUP(NumWindRowsNeeded,0) -> 0 | H96: =ROUNDUP(NumWindrows2Needed,0) -> 0 | J96: =ROUNDUP(NumWindrows3Needed,0) -> 0 | L96: =ROUNDUP(NumWindrows4Needed,0) -> 0
E97: Number of windrows available at site: | F97: =IF(numWindrowsRounded>0,AvailArea/(Windrow1PadArea/numWindrowsRounded),0) -> 0 | H97: =IF(NumWindrows2Rounded>0,AvailArea2/(Windrow2PadArea/NumWindrows2Rounded),0) -> 0 | J97: =IF(NumWindrows3Rounded>0,AvailArea3/(Windrow3PadArea/NumWindrows3Rounded),0) -> 0 | L97: =IF(NumWindrows4Rounded>0,AvailArea4/(Windrow4PadArea/NumWindrows4Rounded),0) -> 0
E98: Number of windrows short: | F98: =IF(NumWindRowsNeeded>AvailWindrows,NumWindRowsNeeded-AvailWindrows,0) -> 0 | H98: =IF(NumWindrows2Needed>AvailWindrows2,NumWindrows2Needed-AvailWindrows2,0) -> 0 | J98: =IF(NumWindrows3Needed>AvailWindrows3,NumWindrows3Needed-AvailWindrows3,0) -> 0 | L98: =IF(NumWindrows4Needed>AvailWindrows4,NumWindrows4Needed-AvailWindrows4,0) -> 0
E99: Working space area needed to manage windrows: | F99: =((workingSpaceWidth*(numWindrowsRounded+1))*(windrow1Length+(2*workingSpaceWidth)))+((widthWindrow*workingSpaceWidth)*(numWindrowsRounded*2)) -> 6000 | G99: ft2 | H99: =((workingSpaceWidth*(NumWindrows2Rounded+1))*(windrow2Length+(2*workingSpaceWidth)))+((widthWindrow*workingSpaceWidth)*(NumWindrows2Rounded*2)) -> 8000 | I99: ft2 | J99: =((workingSpaceWidth*(NumWindrows3Rounded+1))*(windrow3Length+(2*workingSpaceWidth)))+((widthWindrow*workingSpaceWidth)*(NumWindrows3Rounded*2)) -> 800 | K99: ft2 | L99: =((workingSpaceWidth*(NumWindrows4Rounded+1))*(windrow4Length+(2*workingSpaceWidth)))+((widthWindrow*workingSpaceWidth)*(NumWindrows4Rounded*2)) -> 800 | M99: ft2
E100: Total area of pad needed: | F100: =(numWindrowsRounded*windrow1Length*widthWindrow) + Windrow1ApronArea -> 6000 | G100: ft2 | H100: =(NumWindrows2Rounded*windrow2Length*widthWindrow) + Windrow2ApronArea -> 8000 | I100: ft2 | J100: =(NumWindrows3Rounded*windrow3Length*widthWindrow) + Windrow3ApronArea -> 800 | K100: ft2 | L100: =(NumWindrows4Rounded*windrow4Length*widthWindrow) + Windrow4ApronArea -> 800 | M100: ft2
E101: Projected width of site given available length: | F101: =ROUNDUP(Windrow1PadArea/(windrow1Length+2*workingSpaceWidth),0) -> 20 | G101: ft | H101: =ROUNDUP(Windrow2PadArea/(windrow2Length+2*workingSpaceWidth),0) -> 20 | I101: ft | J101: =ROUNDUP(Windrow3PadArea/(windrow3Length+2*workingSpaceWidth),0) -> 20 | K101: ft | L101: =ROUNDUP(Windrow4PadArea/(windrow4Length+2*workingSpaceWidth),0) -> 20 | M101: ft
E102: Percent of mortality that could be composted at site: | F102: =(AvailArea/Windrow1PadArea)*100 -> 0 | G102: % | H102: =(AvailArea2/Windrow2PadArea)*100 -> 0 | I102: % | J102: =(AvailArea3/Windrow3PadArea)*100 -> 0 | K102: % | L102: =(AvailArea4/Windrow4PadArea)*100 -> 0 | M102: %

Sheet Hidden (hidden)
B3: Producer type down down menu
B4: None
B5: Swine
B6: Bovine
B7: Poultry
B8: Equine
B9: Processor by-product
B11: Facility type drop down menu
B12: Display all types of facilities
B13: Bins
B14: Windrows
B15: Piles
B16: Overlapping piles
B19: System Planner Sheet
C20: Type of composting facility: | D20: 1
C21: Type of producer: | D21: 2
C22: Second type of producer: | D22: 5
C23: Thirde type of producer: | D23: 6
B26: Emergency Planner Sheet
C27: Type of composting facility: | D27: 1
C29: Description | D29: Value
C30: swine motality checkbox | D30: TRUE
C31: bovine mortality checkbox | D31: TRUE
C32: poultry mortality checkbox | D32: TRUE
C33: equine mortality checkbox | D33: TRUE
C34: small ruminant mortality checkbox | D34: TRUE

Sheet Documentation (hidden)
B3: Still need to write documentation. Rk
